bitfinex-derivatives/quotes_BTCF0:USTF0_20250501
["timestamp","ask_amount","ask_price","bid_price","bid_amount"]
[1746089411546,0.2100922,95182.0,95181.0,0.5031174]
[1746089412046,0.2100922,95182.0,95181.0,2.0031174]
[1746089412249,0.2100922,95182.0,95181.0,2.1251174]
[1746089414160,0.21780162,95182.0,95181.0,2.1251174]
[1746089417259,0.21780162,95182.0,95181.0,2.0031174]
[1746089421270,0.28230162,95182.0,95181.0,2.0031174]
[1746089424062,0.28230162,95182.0,95181.0,2.1251174]
[1746089425073,0.28230162,95182.0,95181.0,2.0031174]
[1746089425255,0.28230162,95182.0,95181.0,2.0351174]
[1746089425661,0.28230162,95182.0,95181.0,2.0664174]
[1746089426271,0.28230162,95182.0,95181.0,2.1884174]
[1746089427174,0.28230162,95182.0,95181.0,2.0664174]
[1746089432378,1.43893577,95182.0,95181.0,2.0664174]
[1746089451387,1.43122635,95182.0,95181.0,2.0664174]
[1746089461093,1.43122635,95182.0,95181.0,1.856323]
[1746089461292,1.36672635,95182.0,95181.0,1.856323]
[1746089461694,1.36672635,95182.0,95181.0,2.066413]
[1746089462195,1.36672635,95182.0,95181.0,2.188413]
[1746089463299,0.2100922,95182.0,95181.0,2.188413]
[1746089465191,0.2100922,95182.0,95181.0,2.066413]
[1746089465694,0.2626115,95184.0,95183.0,0.21009]
[1746089465996,0.2626115,95184.0,95183.0,0.46009]
[1746089466384,0.2626115,95184.0,95183.0,2.02269]
[1746089466783,0.27060005,95184.0,95183.0,2.02269]
[1746089468093,0.27060005,95184.0,95183.0,2.14469]
[1746089469289,0.27060005,95184.0,95183.0,2.02269]
[1746089474787,0.30230005,95184.0,95183.0,2.02269]
[1746089475099,0.33310005,95184.0,95183.0,2.02269]
[1746089486103,0.33310005,95184.0,95183.0,2.14469]
[1746089487290,0.33310005,95184.0,95183.0,2.02269]
[1746089491200,0.33310005,95184.0,95183.0,2.14469]
[1746089492102,0.33310005,95184.0,95183.0,2.02269]
[1746089502504,0.33310005,95184.0,95183.0,2.03820885]
[1746089503100,0.33310005,95184.0,95183.0,2.16020885]
[1746089504106,0.33310005,95184.0,95183.0,2.03820885]
[1746089505217,0.33310005,95184.0,95183.0,2.16020885]
[1746089505599,0.33310005,95184.0,95183.0,2.14469]
[1746089507103,0.33310005,95184.0,95183.0,2.02269]
[1746089516420,1.4897342,95184.0,95183.0,2.02269]
[1746089522025,0.0015,95185.0,95184.0,0.2100878]
[1746089522215,0.2115856,95185.0,95184.0,0.5460878]
[1746089522922,0.2116256,95185.0,95184.0,0.5460878]
[1746089523122,0.2116256,95185.0,95184.0,0.6680878]
[1746089523315,0.2136256,95185.0,95184.0,0.6680878]
[1746089523516,0.00787525,95191.0,95184.0,0.8188]
[1746089523717,0.00787525,95191.0,95190.0,0.2100745]
[1746089523718,5.401e-05,95191.0,95190.0,0.2100745]
[1746089524022,5.401e-05,95191.0,95190.0,0.4900745]
[1746089524222,1.15668816,95191.0,95190.0,0.6120745]
[1746089524410,1.15663415,95191.0,95190.0,0.6449745]
[1746089524612,0.08038924,95193.0,95192.0,0.2100701]
[1746089524818,0.08038924,95193.0,95192.0,0.85728733]
[1746089525024,1.23702339,95193.0,95192.0,0.85728733]
[1746089525325,1.23706339,95193.0,95192.0,0.97928733]
[1746089526315,1.23906339,95193.0,95192.0,0.97928733]
[1746089526531,1.24106339,95193.0,95192.0,0.97928733]
[1746089526827,1.24106339,95193.0,95192.0,0.9628701]
[1746089527029,1.24106339,95193.0,95192.0,2.4628701]
[1746089527226,0.2110615,95196.0,95195.0,0.2100635]
[1746089527420,0.2110615,95196.0,95195.0,0.5000635]
[1746089527920,0.2110615,95196.0,95195.0,0.5328635]
[1746089528220,0.2110615,95196.0,95195.0,0.6548635]
[1746089528522,0.001,95196.0,95195.0,0.6548635]
[1746089528724,0.004,95196.0,95195.0,0.6548635]
[1746089529724,0.2140613,95196.0,95195.0,0.6548635]
[1746089530331,0.2160613,95196.0,95195.0,0.6548635]
[1746089530532,0.006,95196.0,95195.0,0.6548635]
[1746089531034,0.2160613,95196.0,95195.0,0.6548635]
[1746089532925,0.1,95200.0,95197.0,0.0525143]
[1746089533148,0.1,95200.0,95199.0,0.2100547]
[1746089533330,0.1,95200.0,95199.0,0.4500547]
[1746089533526,0.10715679,95206.0,95205.0,0.2100414]
[1746089533829,0.10715679,95206.0,95205.0,0.47645718]
[1746089534020,0.10719679,95206.0,95205.0,0.47645718]
[1746089534426,0.10719679,95206.0,95205.0,0.53915717]
[1746089535233,0.10719679,95206.0,95205.0,2.03915717]
[1746089535625,0.11019679,95206.0,95205.0,2.03915717]
[1746089535821,0.11319679,95206.0,95205.0,2.03915717]
[1746089536728,0.11319679,95206.0,95205.0,2.0227414]
[1746089537034,0.00604,95206.0,95205.0,2.0227414]
[1746089540128,0.12804,95206.0,95205.0,2.0227414]
[1746089542838,0.3380792,95206.0,95205.0,2.0227414]
[1746089547335,0.2160792,95206.0,95205.0,2.0227414]
[1746089548152,0.3380792,95206.0,95205.0,2.0227414]
[1746089549236,0.3682792,95206.0,95205.0,2.0227414]
[1746089554736,0.3682792,95206.0,95205.0,1.9918414]
[1746089555632,1.52491335,95206.0,95205.0,0.2818]
[1746089555941,1.52491335,95206.0,95205.0,0.4918414]
[1746089556137,1.52491335,95206.0,95205.0,1.9918414]
[1746089559629,1.52491335,95206.0,95205.0,0.4918414]
[1746089564441,1.52487335,95206.0,95205.0,0.4918414]
[1746089571949,1.55757335,95206.0,95205.0,0.5244414]
[1746089575743,1.55757335,95206.0,95205.0,2.0244414]
[1746089583042,1.52737335,95206.0,95205.0,2.0244414]
[1746089587150,1.52737335,95206.0,95205.0,2.04012883]
[1746089588145,1.52737335,95206.0,95205.0,2.0244414]
[1746089605560,1.55957335,95206.0,95205.0,2.0244414]
[1746089607660,1.66673014,95206.0,95205.0,2.0244414]
[1746089611458,1.55957335,95206.0,95205.0,2.0244414]
[1746089617863,1.28463415,95206.0,95205.0,2.0244414]
[1746089618055,0.22319324,95211.0,95210.0,0.2100304]
[1746089618365,0.22323324,95211.0,95210.0,0.4600304]
[1746089618755,0.22323324,95211.0,95210.0,1.9600304]
[1746089619064,0.22323324,95211.0,95210.0,2.0243304]
[1746089619265,0.34523324,95211.0,95210.0,2.0243304]
[1746089620065,0.34823324,95211.0,95210.0,2.0243304]
[1746089620467,0.35695828,95211.0,95210.0,2.0243304]
[1746089628663,0.35695828,95211.0,95210.0,0.5243304]
[1746089628862,0.35695828,95211.0,95210.0,0.282]
[1746089629055,1.51359243,95211.0,95210.0,0.4920304]
[1746089629261,1.57939243,95211.0,95210.0,0.4920304]
[1746089637266,1.57939243,95211.0,95210.0,0.34565121]
[1746089639066,1.94019243,95211.0,95210.0,0.34565121]
[1746089644671,1.94019243,95211.0,95210.0,1.84565121]
[1746089646077,1.57939243,95211.0,95210.0,1.84565121]
[1746089646281,1.94019243,95211.0,95210.0,1.84565121]
[1746089649283,1.94015243,95211.0,95210.0,1.84565121]
[1746089654784,1.94015243,95211.0,95210.0,0.34565121]
[1746089655280,1.94015243,95211.0,95210.0,1.84565121]
[1746089655480,1.94015243,95211.0,95210.0,0.34565121]
[1746089657179,2.04727987,95211.0,95210.0,0.34565121]
[1746089657480,2.04727987,95211.0,95210.0,0.40635121]
[1746089661387,2.01397987,95211.0,95210.0,0.40635121]
[1746089661886,1.90685243,95211.0,95210.0,1.90635121]
[1746089663189,1.87435243,95211.0,95210.0,1.90635121]
[1746089664386,1.87435243,95211.0,95210.0,0.40635121]
[1746089664587,1.87435243,95211.0,95210.0,0.42190364]
[1746089664888,1.87439243,95211.0,95210.0,1.92190364]
[1746089665589,1.87439243,95211.0,95210.0,1.90635121]
[1746089669274,1.87439243,95211.0,95210.0,0.40635121]
[1746089669874,1.51359243,95211.0,95210.0,0.40635121]
[1746089675183,1.39159243,95211.0,95210.0,0.40635121]
[1746089676286,1.51359243,95211.0,95210.0,0.40635121]
[1746089677883,1.51359243,95211.0,95210.0,1.90635121]
[1746089679679,1.62075048,95211.0,95210.0,1.90635121]
[1746089680287,0.46111633,95211.0,95210.0,1.90635121]
[1746089680592,0.46411633,95211.0,95210.0,1.90635121]
[1746089681186,0.34211633,95211.0,95210.0,1.90635121]
[1746089682186,0.46411633,95211.0,95210.0,1.90635121]
[1746089683206,0.34211633,95211.0,95210.0,1.90635121]
[1746089684192,0.46411633,95211.0,95210.0,1.90635121]
[1746089684394,0.46411633,95211.0,95210.0,1.99577498]
[1746089684697,0.35695828,95211.0,95210.0,1.99577498]
[1746089685194,0.23495828,95211.0,95210.0,1.99577498]
[1746089685495,0.23491828,95211.0,95210.0,1.99577498]
[1746089685796,0.26675828,95211.0,95210.0,1.99577498]
[1746089687193,0.38875828,95211.0,95210.0,1.99577498]
[1746089687697,0.38875828,95211.0,95210.0,2.02617498]
[1746089688089,0.26675828,95211.0,95210.0,2.02617498]
[1746089688284,0.10715805,95213.0,95210.0,1.8411]
[1746089688489,0.13401654,95222.0,95220.0,0.2100083]
[1746089688490,0.2413089,95221.0,95220.0,0.2100083]
[1746089688691,1.45044505,95221.0,95220.0,0.4600083]
[1746089689100,1.57248505,95221.0,95220.0,0.4600083]
[1746089690401,1.57348505,95221.0,95220.0,0.4600083]
[1746089691805,1.60518505,95221.0,95220.0,0.4600083]
[1746089694206,0.4168509,95221.0,95220.0,0.4600083]
[1746089694594,0.4492509,95221.0,95220.0,0.4600083]
[1746089696506,0.4168509,95221.0,95220.0,0.4600083]
[1746089697803,0.3855509,95221.0,95220.0,0.4600083]
[1746089700405,0.4489509,95221.0,95220.0,0.4600083]
[1746089703713,0.4186509,95221.0,95220.0,0.4600083]
[1746089704412,0.4513509,95221.0,95220.0,0.4600083]
[1746089705810,0.4513509,95221.0,95220.0,0.4908083]
[1746089708122,0.3855509,95221.0,95220.0,0.4908083]
[1746089708322,0.4460509,95221.0,95220.0,0.5229083]
[1746089712315,0.3330489,95221.0,95220.0,0.5229083]
[1746089712515,0.3330461,95221.0,95220.0,0.5229083]
[1746089712919,0.3330061,95221.0,95220.0,0.5229083]
[1746089713122,0.2110461,95221.0,95220.0,0.5229083]
[1746089714027,0.2110461,95221.0,95220.0,0.4908083]
[1746089714227,0.3330461,95221.0,95220.0,0.4908083]
[1746089714532,0.3647461,95221.0,95220.0,0.4908083]
[1746089714923,0.3976461,95221.0,95220.0,0.4908083]
[1746089715133,0.15594,95221.0,95220.0,0.4908083]
[1746089715331,0.3330061,95221.0,95220.0,0.4908083]
[1746089715733,0.3330061,95221.0,95220.0,0.5220083]
[1746089715734,0.3330461,95221.0,95220.0,0.5220083]
[1746089716239,0.2427461,95221.0,95220.0,0.5220083]
[1746089716537,0.2750461,95221.0,95220.0,0.5220083]
[1746089717137,0.3970461,95221.0,95220.0,0.5220083]
[1746089720535,0.22206703,95224.0,95223.0,0.2100017]
[1746089720835,0.22206703,95224.0,95223.0,0.4800017]
[1746089721029,0.22210703,95224.0,95223.0,0.4800017]
[1746089721232,0.34410703,95224.0,95223.0,0.5431017]
[1746089721641,0.34510703,95224.0,95223.0,0.5431017]
[1746089723042,0.34506703,95224.0,95223.0,0.5431017]
[1746089723342,0.34510583,95224.0,95223.0,0.5431017]
[1746089723544,0.34506583,95224.0,95223.0,0.5431017]
[1746089723844,0.34510583,95224.0,95223.0,0.5431017]
[1746089724142,0.34510583,95224.0,95223.0,2.0431017]
[1746089727546,0.34510583,95224.0,95223.0,1.8331]
[1746089727745,0.34510583,95224.0,95223.0,2.0431017]
[1746089734149,0.13510633,95224.0,95223.0,2.0431017]
[1746089734540,0.34510583,95224.0,95223.0,2.0431017]
[1746089741441,0.13510633,95224.0,95223.0,2.0431017]
[1746089741645,0.34510583,95224.0,95223.0,2.0431017]
[1746089741945,0.34506583,95224.0,95223.0,2.05863982]
[1746089742141,0.34510583,95224.0,95223.0,2.05863982]
[1746089742537,0.13510633,95224.0,95223.0,2.05863982]
[1746089743940,0.13510633,95224.0,95223.0,2.0431017]
[1746089748944,0.13510633,95224.0,95223.0,2.20352234]
[1746089749346,0.001,95226.0,95223.0,2.15103654]
[1746089749549,0.31703019,95248.0,95247.0,0.2099488]
[1746089749752,0.31703019,95248.0,95247.0,0.4499488]
[1746089749951,1.47366434,95248.0,95247.0,1.9499488]
[1746089750141,1.70068044,95248.0,95247.0,1.74]
[1746089750345,0.57554629,95248.0,95247.0,0.24]
[1746089750545,1.73218044,95248.0,95247.0,0.4499488]
[1746089751446,1.73214044,95248.0,95247.0,0.4499488]
[1746089751649,1.73218044,95248.0,95247.0,0.4499488]
[1746089752151,1.73218044,95248.0,95247.0,0.4509488]
[1746089753644,1.62510345,95248.0,95247.0,0.4509488]
[1746089757953,1.62506345,95248.0,95247.0,0.4509488]
[1746089758154,1.62510345,95248.0,95247.0,0.4509488]
[1746089758546,1.62510345,95248.0,95247.0,0.46644899]
[1746089760653,1.62510345,95248.0,95247.0,0.4509488]
[1746089765953,1.60351495,95248.0,95247.0,0.4509488]
[1746089766553,1.60351495,95248.0,95247.0,0.4822488]
[1746089768359,1.60351495,95248.0,95247.0,0.4812488]
[1746089768555,1.60351495,95248.0,95247.0,0.4842488]
[1746089771356,1.55102735,95248.0,95247.0,0.4842488]
[1746089772652,1.31017415,95248.0,95247.0,0.4842488]
[1746089772852,1.52008075,95248.0,95247.0,0.4842488]
[1746089773152,1.31017415,95248.0,95247.0,0.4842488]
[1746089773564,1.52012075,95248.0,95247.0,0.4842488]
[1746089774558,1.31017415,95248.0,95247.0,0.4842488]
[1746089774862,1.52012075,95248.0,95247.0,0.4842488]
[1746089777557,1.55112075,95248.0,95247.0,0.2743]
[1746089777759,1.55112075,95248.0,95247.0,0.243]
[1746089778670,1.55112075,95248.0,95247.0,0.4529488]
[1746089781363,1.31013415,95248.0,95247.0,0.4529488]
[1746089781571,1.52012075,95248.0,95247.0,0.4859488]
[1746089785976,1.52012075,95248.0,95247.0,0.4529488]
[1746089795669,1.55272075,95248.0,95247.0,0.4844488]
[1746089797171,1.55272075,95248.0,95247.0,0.47851792]
[1746089804286,1.55272075,95248.0,95247.0,0.50851792]
[1746089805387,1.52012075,95248.0,95247.0,0.50851792]
[1746089808788,1.55302075,95248.0,95247.0,0.50851792]
[1746089811773,1.55298075,95248.0,95247.0,0.50851792]
[1746089814588,1.55313958,95248.0,95247.0,0.50851792]
[1746089830683,1.55313958,95248.0,95247.0,0.35624564]
[1746089832203,1.52023958,95248.0,95247.0,0.35624564]
[1746089843205,1.55263958,95248.0,95247.0,0.35624564]
[1746089845606,1.48873958,95248.0,95247.0,0.35624564]
[1746089846512,1.48873958,95248.0,95247.0,0.29474564]
[1746089846807,1.58373958,95248.0,95247.0,0.32624564]
[1746089850798,1.55353958,95248.0,95247.0,0.39084564]
[1746089858311,1.55353958,95248.0,95247.0,0.32624564]
[1746089858514,1.58533958,95248.0,95247.0,0.32624564]
[1746089860013,1.58533958,95248.0,95247.0,0.35924564]
[1746089860517,1.58533958,95248.0,95247.0,0.25924564]
[1746089860718,1.58533958,95248.0,95247.0,0.49924564]
[1746089864610,1.58533958,95248.0,95247.0,0.53164564]
[1746089865806,1.55353958,95248.0,95247.0,0.53164564]
[1746089889825,1.55338075,95248.0,95247.0,0.53164564]
[1746089891427,1.48858075,95248.0,95247.0,0.53164564]
[1746089892322,1.48873958,95248.0,95247.0,0.53164564]
[1746089895327,1.55273958,95248.0,95247.0,0.53164564]
[1746089905237,1.52163958,95248.0,95247.0,0.53164564]
[1746089906036,1.48873958,95248.0,95247.0,0.53164564]
[1746089906237,0.33210543,95248.0,95247.0,0.53164564]
[1746089906437,0.33214543,95248.0,95247.0,0.53164564]
[1746089906634,0.33214543,95248.0,95247.0,2.03164564]
[1746089909638,0.33214543,95248.0,95247.0,1.7715]
[1746089909839,1.55287958,95248.0,95247.0,0.4814488]
[1746089910234,1.55287958,95248.0,95247.0,0.5134488]
[1746089912247,1.55287958,95248.0,95247.0,0.5442488]
[1746089922653,1.48877958,95248.0,95247.0,0.5442488]
[1746089922839,0.12215883,95248.0,95247.0,0.5442488]
[1746089923043,0.33214543,95248.0,95247.0,0.5442488]
[1746089931449,0.33214543,95248.0,95247.0,0.9050488]
[1746089935660,1.48877958,95248.0,95247.0,0.2715]
[1746089935858,1.55177958,95248.0,95247.0,0.2715]
[1746089939558,1.55177958,95248.0,95247.0,0.4814488]
[1746089940849,1.55177958,95248.0,95247.0,0.32858712]
[1746089941055,1.55177958,95248.0,95247.0,0.11863832]
[1746089941249,1.55177958,95248.0,95247.0,0.32858712]
[1746089949965,1.55177958,95248.0,95247.0,0.36128712]
[1746089950961,1.55177958,95248.0,95247.0,0.26128712]
[1746089954266,1.55173958,95248.0,95247.0,0.26128712]
[1746089957565,1.55173958,95248.0,95247.0,0.05133832]
[1746089957972,1.55173958,95248.0,95247.0,0.26128712]
[1746089967773,1.55158075,95248.0,95247.0,0.26128712]
[1746089970080,1.55173958,95248.0,95247.0,0.26128712]
[1746089971681,1.52133958,95248.0,95247.0,0.26128712]
[1746089971876,1.52133958,95248.0,95247.0,0.29168712]
[1746089974676,0.12215883,95248.0,95247.0,0.29168712]
[1746089974879,0.33210543,95248.0,95247.0,0.29168712]
[1746089975474,0.33214543,95248.0,95247.0,0.29168712]
[1746089979603,1.48877958,95248.0,95247.0,0.29168712]
[1746089980192,1.55157958,95248.0,95247.0,0.08173832]
[1746089980380,1.58367958,95248.0,95247.0,0.29168712]
[1746089984889,1.55157958,95248.0,95247.0,0.29168712]
[1746089995497,1.55157958,95248.0,95247.0,0.29268712]
[1746089995685,1.55157958,95248.0,95247.0,0.29468712]
[1746089996100,1.55157958,95248.0,95247.0,0.29568712]
[1746089996893,1.55157958,95248.0,95247.0,0.26528712]
[1746089997595,1.55157958,95248.0,95247.0,0.26728712]
[1746090002206,1.55157958,95248.0,95247.0,0.29778712]
[1746090003601,1.51967958,95248.0,95247.0,0.29778712]
[1746090004192,1.51963958,95248.0,95247.0,0.29778712]
[1746090005196,0.33210543,95248.0,95247.0,0.29778712]
[1746090005499,0.33214543,95248.0,95247.0,0.29778712]
[1746090006202,0.12219883,95248.0,95247.0,0.29778712]
[1746090006403,0.33214543,95248.0,95247.0,0.29778712]
[1746090006599,0.12219883,95248.0,95247.0,0.29778712]
[1746090007105,0.12219883,95248.0,95247.0,1.79778712]
[1746090007605,0.12215883,95248.0,95247.0,1.79778712]
[1746090007793,0.12219883,95248.0,95247.0,1.79778712]
[1746090020520,0.33214543,95248.0,95247.0,1.79778712]
[1746090021599,0.33214543,95248.0,95247.0,2.0591488]
[1746090026100,0.33214543,95248.0,95247.0,2.4199488]
[1746090030906,0.12219883,95248.0,95247.0,2.4199488]
[1746090031103,0.33214543,95248.0,95247.0,2.4199488]
[1746090031505,0.33214543,95248.0,95247.0,2.58036944]
[1746090035816,0.33214543,95248.0,95247.0,2.4199488]
[1746090037311,0.36394543,95248.0,95247.0,2.4199488]
[1746090037915,0.36394543,95248.0,95247.0,2.27807498]
[1746090039310,0.36390543,95248.0,95247.0,2.27807498]
[1746090041217,0.36390543,95248.0,95247.0,2.30957498]
[1746090042415,0.39710543,95248.0,95247.0,2.30957498]
[1746090045608,0.3969466,95248.0,95247.0,2.30957498]
[1746090048013,0.39710543,95248.0,95247.0,2.30957498]
[1746090050206,0.42720543,95248.0,95247.0,2.30957498]
[1746090059113,0.39710543,95248.0,95247.0,2.24757498]
[1746090060218,0.39710543,95248.0,95247.0,2.28087498]
[1746090060428,1.55373958,95248.0,95247.0,2.28087498]
[1746090062828,1.55373958,95248.0,95247.0,2.31407498]
[1746090065025,1.55373958,95248.0,95247.0,2.24757498]
[1746090065621,1.55373958,95248.0,95247.0,0.6468]
[1746090066923,1.55373958,95248.0,95247.0,0.6428]
[1746090067125,1.55373958,95248.0,95247.0,0.8557488]
[1746090067729,1.55373958,95248.0,95247.0,0.8527488]
[1746090067932,1.55373958,95248.0,95247.0,0.8567488]
[1746090068723,1.55373958,95248.0,95247.0,0.8547488]
[1746090068924,1.55373958,95248.0,95247.0,0.8567488]
[1746090076640,1.55373958,95248.0,95247.0,0.6468]
[1746090076826,1.55373958,95248.0,95247.0,0.286]
[1746090077025,0.2099687,95238.0,95237.0,0.3608]
[1746090077232,1.36660285,95238.0,95237.0,0.4508]
[1746090078140,1.48860285,95238.0,95237.0,0.4508]
[1746090078653,1.48860285,95238.0,95237.0,0.4518]
[1746090079724,1.48860285,95238.0,95237.0,0.4538]
[1746090084635,1.48860285,95238.0,95237.0,0.093]
[1746090088434,0.2099841,95231.0,95230.0,0.3608]
[1746090088637,1.36661825,95231.0,95230.0,0.8207863]
[1746090089348,1.55391825,95231.0,95230.0,0.8207863]
[1746090089548,1.55391825,95231.0,95230.0,0.8523863]
[1746090089748,1.55391825,95231.0,95230.0,0.8543863]
[1746090089949,1.55391825,95231.0,95230.0,0.8850863]
[1746090091044,1.55391825,95231.0,95230.0,0.8860863]
[1746090091349,1.55391825,95231.0,95230.0,0.8880863]
[1746090091549,1.55391825,95231.0,95230.0,0.8860863]
[1746090091749,1.55391825,95231.0,95230.0,0.8880863]
[1746090092048,1.52141825,95231.0,95230.0,0.8870863]
[1746090094441,1.52141825,95231.0,95230.0,0.6771]
[1746090094641,1.52141825,95231.0,95230.0,0.8870863]
[1746090094844,1.52141825,95231.0,95230.0,0.6771]
[1746090095046,1.52141825,95231.0,95230.0,0.8870863]
[1746090102651,1.52141825,95231.0,95230.0,0.6771]
[1746090103350,1.52141825,95231.0,95230.0,0.7081]
[1746090103653,1.52141825,95231.0,95230.0,0.6148]
[1746090104253,1.55231825,95231.0,95230.0,0.254]
[1746090111162,1.55231825,95231.0,95230.0,0.252]
[1746090111351,1.55231825,95231.0,95230.0,0.254]
[1746090111666,1.55231825,95231.0,95230.0,0.253]
[1746090113446,1.55231825,95231.0,95230.0,0.251]
[1746090113651,1.55231825,95231.0,95230.0,0.253]
[1746090116460,1.52141825,95231.0,95230.0,0.253]
[1746090121256,1.55381825,95231.0,95230.0,0.253]
[1746090121458,1.55381825,95231.0,95230.0,0.4629863]
[1746090121667,1.55381825,95231.0,95230.0,0.4930863]
[1746090122063,1.55381825,95231.0,95230.0,0.5238863]
[1746090124772,1.55381825,95231.0,95230.0,0.3139]
[1746090129357,1.55381825,95231.0,95230.0,0.5238863]
[1746090129563,1.55381825,95231.0,95230.0,0.3139]
[1746090136077,1.55381825,95231.0,95230.0,0.5238863]
[1746090138079,1.55381825,95231.0,95230.0,0.35961841]
[1746090140678,1.55381825,95231.0,95230.0,0.08873211]
[1746090146678,1.55381825,95231.0,95230.0,0.12073211]
[1746090147271,1.55381825,95231.0,95230.0,0.15113211]
[1746090147475,1.55381825,95231.0,95230.0,0.36111841]
[1746090153377,1.55381825,95231.0,95230.0,0.15113211]
[1746090154179,1.55381825,95231.0,95230.0,0.36111841]
[1746090156485,1.55381825,95231.0,95230.0,0.15113211]
[1746090162794,1.55381825,95231.0,95230.0,0.32113211]
[1746090173390,1.55381825,95231.0,95230.0,0.3004]
[1746090175286,1.55381825,95231.0,95230.0,0.27]
[1746090175704,0.2099929,95227.0,95226.0,0.3608]
[1746090175895,1.36662705,95227.0,95226.0,0.6208]
[1746090176200,1.48862705,95227.0,95226.0,0.6208]
[1746090176903,1.55022705,95227.0,95226.0,0.6218]
[1746090177802,1.55022705,95227.0,95226.0,0.6228]
[1746090178100,1.55022705,95227.0,95226.0,0.6238]
[1746090178499,1.55022705,95227.0,95226.0,0.6208]
[1746090178801,1.55022705,95227.0,95226.0,0.6218]
[1746090182507,1.55022705,95227.0,95226.0,0.261]
[1746090185708,0.210026,95212.0,95211.0,0.595069]
[1746090185906,0.210026,95212.0,95211.0,0.825069]
[1746090186101,0.332026,95212.0,95211.0,0.825069]
[1746090186612,0.393826,95212.0,95211.0,0.825069]
[1746090186811,0.393826,95212.0,95211.0,0.827069]
[1746090187710,0.393826,95212.0,95211.0,0.6128]
[1746090188606,1.55046015,95212.0,95211.0,0.6441]
[1746090188913,1.55046015,95212.0,95211.0,0.6471]
[1746090195405,1.55046015,95212.0,95211.0,0.6773]
[1746090201023,1.55046015,95212.0,95211.0,0.3165]
[1746090201219,1.55046015,95212.0,95211.0,0.6773]
[1746090205922,1.55046015,95212.0,95211.0,0.3165]
[1746090206221,1.55046015,95212.0,95211.0,0.6773]
[1746090206820,1.55046015,95212.0,95211.0,0.3165]
[1746090207019,1.55046015,95212.0,95211.0,0.6773]
[1746090207420,1.55046015,95212.0,95211.0,0.3165]
[1746090207624,1.55046015,95212.0,95211.0,0.6773]
[1746090210328,1.55046015,95212.0,95211.0,0.3165]
[1746090228053,0.1526,95212.0,95211.0,0.5265282]
[1746090228358,0.332066,95212.0,95211.0,0.5265282]
[1746090228755,0.332066,95212.0,95211.0,2.0265282]
[1746090230758,0.365366,95212.0,95211.0,2.0265282]
[1746090232758,0.332066,95212.0,95211.0,2.0265282]
[1746090233453,0.363366,95212.0,95211.0,2.0265282]
[1746090236351,0.332066,95212.0,95211.0,2.0265282]
[1746090237462,0.12204,95212.0,95211.0,2.0265282]
[1746090237857,0.122,95212.0,95211.0,2.0265282]
[1746090238053,0.2100249,95213.0,95212.0,0.210026]
[1746090238258,0.2100249,95213.0,95212.0,0.557726]
[1746090238757,0.2100249,95213.0,95212.0,2.057726]
[1746090239257,0.3320249,95213.0,95212.0,2.059726]
[1746090240457,0.3320249,95213.0,95212.0,2.061726]
[1746090243361,0.3320249,95213.0,95212.0,0.561726]
[1746090243758,0.3320249,95213.0,95212.0,2.061726]
[1746090246564,0.3320249,95213.0,95212.0,2.422526]
[1746090247369,0.3320249,95213.0,95212.0,2.061726]
[1746090249073,0.3320649,95213.0,95212.0,2.061726]
[1746090249367,0.3320249,95213.0,95212.0,2.061726]
[1746090250259,0.3320649,95213.0,95212.0,2.061726]
[1746090259264,0.3640649,95213.0,95212.0,2.061726]
[1746090259469,0.3640649,95213.0,95212.0,2.029426]
[1746090259969,0.3942649,95213.0,95212.0,2.029426]
[1746090264082,0.3942649,95213.0,95212.0,0.529426]
[1746090271871,0.3942649,95213.0,95212.0,0.560526]
[1746090275973,0.3942649,95213.0,95212.0,0.529426]
[1746090276475,0.3942649,95213.0,95212.0,0.562026]
[1746090276879,0.3942649,95213.0,95212.0,0.529426]
[1746090278378,0.3942649,95213.0,95212.0,0.560126]
[1746090279280,0.3942249,95213.0,95212.0,0.560126]
[1746090280078,0.3942249,95213.0,95212.0,2.060126]
[1746090286397,0.3942249,95213.0,95212.0,2.420926]
[1746090287392,1.55085905,95213.0,95212.0,2.420926]
[1746090289095,1.55085905,95213.0,95212.0,2.060126]
[1746090289391,1.55085905,95213.0,95212.0,2.420926]
[1746090289980,1.55085905,95213.0,95212.0,2.390226]
[1746090300191,1.51885905,95213.0,95212.0,2.390226]
[1746090303198,1.51885905,95213.0,95212.0,2.20638005]
[1746090306393,1.54995905,95213.0,95212.0,2.20638005]
[1746090307300,1.51885905,95213.0,95212.0,2.20638005]
[1746090307499,1.51885905,95213.0,95212.0,2.23858005]
[1746090308002,1.51889905,95213.0,95212.0,2.23858005]
[1746090309103,1.51889905,95213.0,95212.0,2.39928603]
[1746090319098,1.51889905,95213.0,95212.0,0.73858005]
[1746090320406,1.51889905,95213.0,95212.0,0.77028005]
[1746090320807,1.55159905,95213.0,95212.0,0.77028005]
[1746090329716,1.55159905,95213.0,95212.0,0.93098697]
[1746090329913,1.55159905,95213.0,95212.0,0.89878697]
[1746090333817,1.55159905,95213.0,95212.0,0.73808005]
[1746090335321,1.55159905,95213.0,95212.0,2.23808005]
[1746090337316,1.55159905,95213.0,95212.0,0.73808005]
[1746090337513,1.55159905,95213.0,95212.0,0.70638005]
[1746090339324,1.55155905,95213.0,95212.0,0.70638005]
[1746090340528,1.55155905,95213.0,95212.0,0.86708697]
[1746090344329,1.55155905,95213.0,95212.0,0.70638005]
[1746090346323,1.55155905,95213.0,95212.0,2.20638005]
[1746090347324,1.55155905,95213.0,95212.0,2.23828005]
[1746090361625,1.55155905,95213.0,95212.0,2.20638005]
[1746090366339,1.55155905,95213.0,95212.0,2.23698005]
[1746090367038,1.55155905,95213.0,95212.0,1.99635405]
[1746090367238,1.55155905,95213.0,95212.0,2.20638005]
[1746090368947,1.55155905,95213.0,95212.0,2.36709874]
[1746090372149,1.55155905,95213.0,95212.0,2.20638005]
[1746090374939,1.55155905,95213.0,95212.0,0.70638005]
[1746090380347,0.3949249,95213.0,95212.0,0.70638005]
[1746090380646,1.55155905,95213.0,95212.0,0.70638005]
[1746090380948,1.57277905,95213.0,95212.0,0.70638005]
[1746090388754,0.2100458,95203.0,95199.0,0.0301]
[1746090388959,1.72747995,95203.0,95202.0,0.23157559]
[1746090389147,1.84947995,95203.0,95202.0,0.44162359]
[1746090389549,1.91387995,95203.0,95202.0,0.44162359]
[1746090389856,1.91387995,95203.0,95202.0,0.44662359]
[1746090390150,1.91387995,95203.0,95202.0,0.45162359]
[1746090390657,1.91387995,95203.0,95202.0,0.44662359]
[1746090390858,1.91387995,95203.0,95202.0,0.45062359]
[1746090391650,1.91387995,95203.0,95202.0,0.44762359]
[1746090393648,1.91387995,95203.0,95202.0,1.97982359]
[1746090393959,1.92161566,95203.0,95202.0,1.97982359]
[1746090395163,1.79961566,95203.0,95202.0,1.97982359]
[1746090396161,1.92161566,95203.0,95202.0,1.97982359]
[1746090397062,1.79961566,95203.0,95202.0,1.97982359]
[1746090398264,1.92161566,95203.0,95202.0,1.97982359]
[1746090399163,1.79961566,95203.0,95202.0,1.97982359]